bitfinex-derivatives/quotes_SOLF0:USTF0_20260211
["timestamp","ask_amount","ask_price","bid_price","bid_amount"]
[1770832821773,9.13022213,79.015,78.964,9.72460103]
[1770832822277,9.13022213,79.013,78.964,9.72460103]
[1770832823271,9.13022213,79.013,78.973,11.4025]
[1770832825681,9.18398806,79.012,78.973,11.4025]
[1770832825882,9.18398806,79.011,78.973,11.4025]
[1770832826081,9.18398806,79.01,78.973,11.4025]
[1770832826281,9.18398806,79.009,78.973,11.4025]
[1770832826486,9.13022213,79.013,78.973,11.4025]
[1770832826690,9.18395776,79.012,78.973,11.4025]
[1770832826986,4.10380143,79.01,78.973,11.4025]
[1770832827183,9.18395776,79.009,78.973,11.4025]
[1770832827484,4.10380143,79.01,78.973,11.4025]
[1770832827682,9.1840593,79.009,78.973,11.4025]
[1770832827985,4.10380143,79.01,78.973,11.4025]
[1770832828185,9.1840618,79.009,78.973,11.4025]
[1770832828383,4.10380143,79.01,78.973,11.4025]
[1770832828680,9.18403825,79.009,78.973,11.4025]
[1770832828888,4.10380143,79.01,78.973,11.4025]
[1770832829080,9.87479227,79.008,78.973,11.4025]
[1770832829279,19.05882841,79.007,78.973,11.4025]
[1770832829489,9.87479227,79.007,78.973,11.4025]
[1770832830782,4.10380143,79.01,78.939,107.94]
[1770832830783,4.10380143,79.01,78.977,11.4019]
[1770832831086,4.10361145,79.01,78.977,11.4019]
[1770832831289,4.10361145,79.02,78.984,11.4008]
[1770832831586,9.18287624,79.019,78.984,11.4008]
[1770832831887,9.18287624,79.018,78.984,11.4008]
[1770832832079,9.18287624,79.017,78.984,11.4008]
[1770832832274,13.97840372,79.02,78.984,11.4008]
[1770832832486,9.18350417,79.019,78.984,11.4008]
[1770832832685,9.18350417,79.018,78.984,11.4008]
[1770832832886,9.18350417,79.017,78.984,11.4008]
[1770832833086,13.97840372,79.02,78.984,11.4008]
[1770832833277,19.05829583,79.019,78.984,11.4008]
[1770832833479,9.18350356,79.018,78.984,11.4008]
[1770832833684,9.18350356,79.017,78.984,11.4008]
[1770832833986,9.87479227,79.019,78.984,11.4008]
[1770832834180,4.10361145,79.01,78.974,9.57199129]
[1770832835482,4.10361145,79.01,78.974,20.97419129]
[1770832836383,9.87479227,79.019,78.981,20.97329129]
[1770832836583,9.18646836,79.018,78.981,20.97329129]
[1770832836788,9.18646836,79.017,78.981,20.97329129]
[1770832836991,9.18646836,79.016,78.981,20.97329129]
[1770832837288,9.87479227,79.019,78.981,20.97329129]
[1770832837585,9.18696368,79.018,78.981,20.97329129]
[1770832837784,9.18696368,79.017,78.981,20.97329129]
[1770832837987,9.18696368,79.016,78.981,20.97329129]
[1770832838185,11.3952,79.024,78.986,9.57199129]
[1770832838387,9.18738188,79.023,78.986,9.57199129]
[1770832838690,9.18738188,79.022,78.986,9.57199129]
[1770832838883,9.18738188,79.021,78.986,9.57199129]
[1770832839088,9.87479227,79.009,78.961,9.57199129]
[1770832839292,4.10361145,79.0,78.961,9.57199129]
[1770832839586,9.87479227,78.999,78.961,20.97619129]
[1770832839891,15.62600864,79.034,78.944,101.02]
[1770832839892,13.97840372,78.99,78.947,9.57199129]
[1770832840082,15.62600864,79.02,78.95,4.10361145]
[1770832840083,9.87479227,79.005,78.95,4.10361145]
[1770832840289,9.18968337,79.004,78.951,9.57199129]
[1770832840589,9.18968337,79.003,78.951,9.57199129]
[1770832840890,9.18968337,79.002,78.951,9.57199129]
[1770832841189,9.18968337,79.001,78.951,9.57199129]
[1770832841389,9.18968337,79.0,78.951,9.57199129]
[1770832841589,9.18968337,78.999,78.951,9.57199129]
[1770832841790,11.3981,79.004,78.961,11.4041]
[1770832842090,9.1884758,79.003,78.961,11.4041]
[1770832842286,11.3967,79.014,78.971,20.97469129]
[1770832842488,11.7643772,79.038,78.991,9.57199129]
[1770832842795,9.18581944,79.037,78.991,9.57199129]
[1770832842977,11.3938,79.034,78.991,9.57199129]
[1770832843176,9.18581944,79.033,78.993,11.3996]
[1770832843389,9.18581944,79.032,78.993,11.3996]
[1770832843591,11.3938,79.034,78.993,11.3996]
[1770832843789,9.18608321,79.033,78.993,11.3996]
[1770832843989,9.18608321,79.032,78.993,11.3996]
[1770832844194,9.18608321,79.031,78.993,11.3996]
[1770832844395,9.18608321,79.03,78.993,11.3996]
[1770832844691,11.3938,79.034,78.993,11.3996]
[1770832844892,9.18756092,79.033,78.993,20.97159129]
[1770832845082,9.18756092,79.032,78.994,9.57199129]
[1770832845282,9.18756092,79.031,78.994,9.57199129]
[1770832845599,9.87479227,79.045,79.002,9.57199129]
[1770832845783,9.18621278,79.044,79.002,9.57199129]
[1770832845984,9.18621278,79.043,79.002,9.57199129]
[1770832846293,9.87479227,79.045,79.002,9.57199129]
[1770832846493,9.18525316,79.044,79.002,9.57199129]
[1770832846794,9.18525316,79.043,79.009,11.3973]
[1770832846987,9.87479227,79.045,79.009,11.3973]
[1770832847291,9.87479227,79.043,79.002,9.57199129]
[1770832847696,4.10361145,79.05,78.973,22.805]
[1770832847697,4.10361145,79.05,79.003,9.57199129]
[1770832847993,9.87479227,79.058,79.01,13.67560274]
[1770832848192,9.87479227,79.056,79.01,9.57199129]
[1770832848395,4.10361145,79.05,79.01,9.57199129]
[1770832848797,4.10361145,79.05,79.015,11.3963]
[1770832849700,9.87479227,79.049,79.007,11.3976]
[1770832849900,177.0614,79.113,79.007,11.3976]
[1770832849901,9.87479227,79.039,79.007,11.3976]
[1770832850300,4.10361145,79.05,79.007,11.3976]
[1770832850597,9.17505569,79.049,79.007,11.3976]
[1770832850797,4.10361145,79.05,79.007,11.3976]
[1770832850798,9.17505569,79.048,79.007,11.3976]
[1770832850991,9.17505569,79.047,79.007,11.3976]
[1770832851191,9.17505569,79.046,79.007,11.3976]
[1770832851388,4.10361145,79.05,79.007,11.3976]
[1770832851601,9.17282994,79.049,79.007,11.3976]
[1770832851786,9.16239575,79.052,79.015,11.3963]
[1770832852598,9.16995722,79.051,79.015,11.3963]
[1770832852799,9.16239575,79.052,79.015,11.3963]
[1770832853000,9.16995722,79.051,79.015,11.3963]
[1770832853299,9.16239575,79.066,79.027,21.17277381]
[1770832853496,4.10361145,79.05,79.001,9.77807381]
[1770832853693,4.10361145,79.04,79.001,9.77807381]
[1770832853891,9.16239575,79.049,79.001,9.77807381]
[1770832854699,9.16239575,79.049,79.013,11.3967]
[1770832855095,9.16239575,79.062,79.02,13.88168526]
[1770832855295,4.10361145,79.07,79.021,9.77807381]
[1770832855500,9.16444919,79.069,79.021,9.77807381]
[1770832855808,9.16239575,79.075,79.04,11.3928]
[1770832856104,4.10361145,79.09,79.041,9.77807381]
[1770832856300,9.1623918,79.089,79.041,9.77807381]
[1770832856602,9.1623918,79.088,79.041,9.77807381]
[1770832856799,9.1623918,79.087,79.041,9.77807381]
[1770832857102,9.1623918,79.086,79.041,9.77807381]
[1770832857305,9.16239575,79.086,79.041,9.77807381]
[1770832857706,9.16239575,79.099,79.05,4.10361145]
[1770832858005,9.16239575,79.097,79.046,9.77807381]
[1770832858212,4.10361145,79.09,79.046,9.77807381]
[1770832858705,13.2660072,79.09,79.046,9.77807381]
[1770832859098,9.16239575,79.09,79.06,11.39]
[1770832859304,9.16239575,79.09,79.046,9.77807381]
[1770832859507,13.2660072,79.09,79.046,9.77807381]
[1770832859805,9.16239575,79.109,79.061,9.77807381]
[1770832860203,4.10361145,79.1,79.061,9.77807381]
[1770832860403,4.10361145,79.1,79.069,11.3886]
[1770832860602,4.10361145,79.1,79.061,9.77807381]
[1770832861005,9.16239575,79.109,79.061,9.77807381]
[1770832861406,4.10361145,79.09,79.045,9.77807381]
[1770832862206,4.10361145,79.07,79.029,9.77807381]
[1770832862404,4.10361145,79.06,79.029,9.77807381]
[1770832862706,4.10361145,79.04,79.013,11.3967]
[1770832862907,9.16239575,79.059,79.013,11.3967]
[1770832863698,20.55269575,79.058,79.013,11.3967]
[1770832863900,9.16239575,79.058,79.013,11.3967]
[1770832864109,9.16239575,79.058,79.002,11.3982]
[1770832864302,9.16239575,79.055,78.999,9.77807381]
[1770832866801,9.16239575,79.069,78.999,9.77807381]
[1770832867812,9.16239575,79.069,79.026,11.3948]
[1770832868914,9.16239575,79.039,78.983,9.77807381]
[1770832869606,9.16239575,79.039,79.001,11.3995]
[1770832871410,10.98292844,79.04,78.996,9.77807381]
[1770832871613,9.16239575,79.055,79.013,11.3979]
[1770832871907,9.13784906,79.054,78.996,9.77807381]
[1770832872111,9.16239575,79.052,78.996,9.77807381]
[1770832872412,9.16239575,79.05,78.996,9.77807381]
[1770832872612,9.16239575,79.048,78.996,9.77807381]
[1770832872815,9.16239575,79.048,79.002,11.3994]
[1770832873217,9.16239575,79.039,78.981,116.49807381]
[1770832873512,9.16239575,79.037,78.981,9.77807381]
[1770832873716,9.16239575,79.035,78.981,9.77807381]
[1770832874818,9.16239575,79.035,78.993,11.4008]
[1770832875414,9.16239575,79.035,78.999,11.3998]
[1770832876817,9.14627917,79.034,78.981,9.77807381]
[1770832877016,9.16239575,79.032,78.968,9.77807381]
[1770832877217,9.16239575,79.019,78.968,9.77807381]
[1770832877519,9.16239575,79.019,78.975,11.4033]
[1770832877520,9.16239575,79.017,78.975,11.4033]
[1770832878714,9.16239575,79.017,78.981,11.4024]
[1770832879619,9.16239575,79.017,78.972,11.4037]
[1770832880621,20.55979575,79.017,78.972,11.4037]
[1770832881025,20.55979575,79.017,78.978,9.38539785]
[1770832881226,9.71012369,79.016,78.948,9.38539785]
[1770832882521,9.71012369,79.004,78.963,11.405]
[1770832883020,9.11795442,79.018,78.964,9.38539785]
[1770832883216,11.3977,79.015,78.972,11.4037]
[1770832883623,21.10782369,79.015,78.972,11.4037]
[1770832884728,21.10782369,79.015,78.978,11.4029]
[1770832885731,9.71012369,79.015,78.978,11.4029]
[1770832886327,9.71012369,79.032,78.977,9.38539785]
[1770832886830,9.11804185,79.031,78.977,9.38539785]
[1770832887138,9.71012369,79.032,78.994,11.4005]
[1770832887328,9.11937988,79.031,78.994,11.4005]
[1770832887529,8.9687416,79.029,78.977,9.38539785]
[1770832887729,8.9687416,79.027,78.977,9.38539785]
[1770832888423,8.9687416,79.027,78.992,11.4009]
[1770832889229,8.9687416,79.024,78.977,20.78849785]
[1770832889536,8.9687416,79.019,78.977,11.4031]
[1770832889733,8.9687416,79.017,78.977,11.4031]
[1770832890231,8.9687416,79.016,78.971,11.4039]
[1770832891221,11.3977,79.015,78.976,11.4031]
[1770832892634,11.3968,79.021,78.979,9.68217135]
[1770832893030,18.08381407,79.02,78.951,9.68217135]
[1770832893235,9.1158092,79.019,78.951,9.68217135]
[1770832893433,9.1158092,79.018,78.951,9.68217135]
[1770832893638,11.3972,79.018,78.975,11.4033]
[1770832894436,11.3972,79.018,78.981,11.4025]
[1770832894736,8.9687416,79.017,78.981,11.4025]
[1770832894936,8.9687416,79.014,78.966,9.68217135]
[1770832895740,8.9687416,79.014,78.973,11.4036]
[1770832896536,11.3976,79.015,78.977,9.68217135]
[1770832898534,8.9687416,79.023,78.977,9.68217135]
[1770832898741,8.9687416,79.026,78.977,9.68217135]
[1770832899542,8.9687416,79.039,78.977,9.68217135]
[1770832900138,8.9687416,79.039,78.97,10.99456452]
[1770832900139,11.3929,79.048,79.006,9.68217135]
[1770832900336,18.07608073,79.072,79.011,9.68217135]
[1770832900546,8.9687416,79.072,79.011,9.68217135]
[1770832900936,8.9687416,79.072,79.01,10.99456452]
[1770832900937,8.9687416,79.072,79.03,9.68217135]
[1770832901441,8.9687416,79.068,79.012,9.68217135]
[1770832901641,10.99456452,79.08,78.972,22.8075]
[1770832901642,8.9687416,79.059,78.973,9.68217135]
[1770832901839,8.9687416,79.057,78.973,9.68217135]
[1770832902038,11.3929,79.048,78.998,9.68217135]
[1770832902238,20.3616416,79.048,78.998,9.68217135]
[1770832902641,10.99456452,79.06,78.983,9.68217135]
[1770832902642,8.9687416,79.043,78.983,9.68217135]
[1770832904746,8.9687416,79.043,79.003,11.3993]
[1770832906548,8.9687416,79.06,78.998,9.68217135]
[1770832906751,8.9687416,79.058,78.998,9.68217135]
[1770832907055,9.13349168,79.057,78.998,9.68217135]
[1770832907242,8.9687416,79.055,79.016,11.3974]
[1770832907549,8.9687416,79.039,78.956,9.68217135]
[1770832907753,8.9687416,79.019,78.956,9.68217135]
[1770832907957,8.9687416,79.017,78.969,9.68217135]
[1770832908244,8.9687416,79.015,78.969,9.68217135]
[1770832908439,8.9687416,79.015,78.971,11.4038]
[1770832908640,8.9687416,79.013,78.969,9.68217135]
[1770832909048,9.11044541,79.012,78.969,9.68217135]
[1770832909244,8.9687416,79.01,78.956,9.68217135]
[1770832909444,8.9687416,79.008,78.956,9.68217135]
[1770832909652,8.9687416,79.006,78.956,9.68217135]
[1770832909844,8.9687416,79.004,78.956,9.68217135]
[1770832910045,9.11044541,79.003,78.956,9.68217135]
[1770832910351,8.9687416,79.001,78.961,11.4053]
[1770832910542,9.11044541,79.0,78.961,11.4053]
[1770832910738,9.11044541,78.999,78.961,11.4053]
[1770832910949,9.11044541,78.998,78.961,11.4053]
[1770832911149,9.11044541,78.997,78.961,11.4053]
[1770832911450,9.11044541,78.996,78.961,11.4053]
[1770832911655,9.11044541,78.995,78.961,11.4053]
[1770832911847,8.9687416,79.001,78.961,11.4053]
[1770832912043,10.99456452,79.02,78.941,101.0]
[1770832912044,9.52257167,79.036,78.975,9.17534597]
[1770832912353,9.52257167,79.035,78.975,9.17534597]
[1770832912653,9.52257167,79.031,78.975,9.17534597]
[1770832913152,9.52257167,79.029,78.975,9.17534597]
[1770832914855,9.52257167,79.009,78.942,9.17534597]
[1770832915853,9.52257167,79.006,78.964,11.4049]
[1770832916456,9.52257167,79.002,78.956,11.4061]
[1770832917152,9.52257167,79.002,78.942,9.17534597]
[1770832917153,10.99456452,78.99,78.946,11.4075]
[1770832917353,9.52257167,78.989,78.946,11.4075]
[1770832918152,9.52257167,78.969,78.899,9.17534597]
[1770832918946,9.52257167,78.962,78.899,9.17534597]
[1770832919757,9.52257167,78.962,78.911,9.17534597]
[1770832920253,9.52257167,78.962,78.913,9.17534597]
[1770832920457,9.52257167,78.976,78.913,9.17534597]
[1770832921159,9.52257167,78.976,78.924,9.17534597]
[1770832921455,9.52257167,78.99,78.924,9.17534597]
[1770832921654,9.52257167,79.006,78.926,9.17534597]
[1770832922051,9.52257167,79.006,78.951,9.17534597]
[1770832922246,10.99456452,79.03,78.951,9.17534597]
[1770832922247,9.52257167,79.022,78.951,9.17534597]
[1770832922452,9.52257167,79.039,78.961,9.17534597]
[1770832922853,11.3945,79.037,78.983,11.4021]
[1770832923155,11.3945,79.037,78.93,38.0]
[1770832923156,9.52257167,78.989,78.915,9.17534597]
[1770832923560,9.52257167,78.988,78.94,11.4083]
[1770832923761,9.52257167,79.009,78.941,9.17534597]
[1770832923956,9.21970417,79.008,78.941,9.17534597]
[1770832924261,10.99456452,79.01,78.921,9.17534597]
[1770832924262,9.52257167,78.989,78.921,9.17534597]
[1770832924567,9.52257167,78.987,78.921,9.17534597]
[1770832924754,9.52257167,78.985,78.921,9.17534597]
[1770832925057,9.21970417,78.984,78.921,9.17534597]
[1770832925261,9.21970417,78.983,78.921,9.17534597]
[1770832925461,11.4037,78.974,78.931,11.4097]
[1770832925662,9.52257167,78.985,78.931,11.4097]
[1770832925862,11.4035,78.975,78.93,11.4098]
[1770832926050,9.20430051,78.974,78.93,11.4098]
[1770832926252,9.52257167,78.985,78.93,11.4098]
[1770832926459,9.19883705,78.984,78.93,11.4098]
[1770832926661,18.71870688,78.983,78.93,20.58514597]
[1770832926863,200.69541296,79.033,78.9,10.99456452]
[1770832926864,9.52257167,78.971,78.911,9.17534597]
[1770832927259,11.4012,78.99,78.944,11.4078]
[1770832927459,9.52257167,78.999,78.92,10.99456452]
[1770832927660,9.52257167,78.997,78.921,9.17534597]
[1770832927858,9.52257167,78.995,78.921,9.17534597]
[1770832928165,10.99456452,79.0,78.921,9.17534597]
[1770832928166,9.52257167,78.982,78.925,11.4105]
[1770832928359,9.52257167,78.98,78.921,9.17534597]
[1770832928560,9.52257167,78.98,78.931,11.4097]
[1770832928766,9.52257167,78.98,78.921,9.17534597]
[1770832929766,9.52257167,78.98,78.939,11.4085]
[1770832929962,9.52257167,78.984,78.921,9.17534597]
[1770832930154,9.52257167,78.982,78.921,9.17534597]
[1770832930356,9.52257167,78.982,78.938,11.4087]
[1770832930762,11.4034,78.975,78.923,11.4108]
[1770832931065,9.52257167,78.998,78.921,9.17534597]
[1770832931366,9.52257167,78.996,78.921,9.17534597]
[1770832931567,18.71755417,78.995,78.921,9.17534597]
[1770832931762,11.4017,78.987,78.937,11.4088]
[1770832931958,9.52257167,78.985,78.937,11.4088]
[1770832932362,9.52257167,78.975,78.904,9.17534597]
[1770832932564,9.52257167,78.975,78.88,10.99456452]
[1770832932565,9.52257167,78.969,78.886,9.17534597]
[1770832932767,9.52257167,78.949,78.886,9.17534597]
[1770832932969,9.52257167,78.948,78.886,9.17534597]
[1770832933876,9.52257167,78.942,78.886,11.4162]
[1770832934263,9.52257167,78.942,78.869,9.17534597]
[1770832934573,9.52257167,78.928,78.854,9.17534597]
[1770832934978,9.52257167,78.919,78.854,9.17534597]
[1770832935279,9.52257167,78.899,78.834,9.17534597]
[1770832935576,9.52257167,78.918,78.846,9.17534597]
[1770832935772,9.52257167,78.948,78.846,9.17534597]
[1770832935973,9.52257167,78.948,78.861,9.17534597]
[1770832936169,9.52257167,78.929,78.863,9.17534597]
[1770832936775,9.52257167,78.929,78.866,9.17534597]
[1770832936982,9.52257167,78.929,78.848,9.17534597]
[1770832937680,9.52257167,78.929,78.851,9.17534597]
[1770832937875,9.52257167,78.929,78.85,10.99456452]
[1770832937876,9.52257167,78.978,78.908,9.17534597]
[1770832938382,9.52257167,78.996,78.911,9.17534597]
[1770832938578,9.52257167,78.996,78.931,9.17534597]
[1770832938784,9.52257167,78.996,78.944,9.17534597]
[1770832939080,9.52257167,78.996,78.91,10.99456452]
[1770832939081,9.52257167,78.996,78.926,9.17534597]
[1770832939379,9.52257167,78.985,78.928,11.4101]
[1770832940077,9.52257167,78.982,78.926,9.17534597]
[1770832941076,11.4029,78.979,78.926,9.17534597]
[1770832941776,11.4029,78.979,78.927,11.4103]
[1770832941977,9.72424626,78.999,78.928,9.29901112]
[1770832942874,34.5495772,79.05,78.955,11.4062]
[1770832942875,11.3983,79.011,78.955,11.4062]
[1770832943184,21.12254626,79.011,78.955,11.4062]
[1770832943382,9.72424626,79.01,78.955,11.4062]
[1770832943582,9.72424626,79.006,78.945,9.29901112]
[1770832944481,9.72424626,79.006,78.947,9.29901112]
[1770832944678,9.72424626,79.006,78.91,10.99456452]
[1770832944679,9.72424626,79.044,78.961,9.29901112]
[1770832944982,9.72424626,79.031,78.971,11.4039]
[1770832945879,11.7643772,79.067,78.961,9.29901112]
[1770832945880,9.72424626,79.025,78.961,20.70431112]
[1770832946081,9.72424626,79.043,78.962,9.29901112]
[1770832947382,11.3946,79.037,78.978,21.03076922]
[1770832947981,11.395,79.033,78.978,21.03076922]
[1770832948177,20.30960918,79.033,78.978,21.03076922]
[1770832948382,8.91460918,79.033,78.978,21.03076922]
[1770832948785,8.91460918,79.033,78.978,9.62786922]
[1770832949186,8.91460918,79.049,78.978,9.62786922]
[1770832949584,8.91460918,79.036,78.978,9.62786922]
[1770832950288,8.91460918,79.032,78.974,11.4035]
[1770832950678,8.91460918,79.029,78.961,9.62786922]
[1770832950882,9.12569969,79.028,78.961,9.62786922]
[1770832951086,8.91460918,79.015,78.961,9.62786922]
[1770832951681,11.3996,79.002,78.961,9.62786922]
[1770832951887,11.3996,79.002,78.947,9.62786922]
[1770832952387,9.12569969,79.021,78.952,9.62786922]
[1770832952598,8.91460918,79.042,78.961,9.62786922]
[1770832952993,8.91460918,79.042,78.975,9.62786922]
[1770832952994,11.3956,79.03,78.975,9.62786922]
[1770832953291,8.91460918,79.029,78.975,9.62786922]
[1770832953693,8.91460918,79.029,78.987,11.4015]
[1770832954494,20.31030918,79.029,78.975,9.62786922]
[1770832954695,8.91460918,79.028,78.975,9.62786922]
[1770832954895,8.91460918,79.028,78.959,9.62786922]
[1770832955293,11.3975,79.016,78.964,11.4048]
[1770832955499,11.7643772,79.045,78.959,9.62786922]
[1770832955500,8.91460918,79.015,78.959,9.62786922]
[1770832955796,11.398,79.012,78.961,11.4054]
[1770832955996,8.91460918,79.01,78.931,9.62786922]
[1770832956192,8.91460918,78.999,78.931,9.62786922]
[1770832956698,8.91460918,78.999,78.948,11.4072]
[1770832957893,15.62600864,79.033,78.917,101.04]
[1770832957894,8.91460918,79.031,78.971,9.62786922]
[1770832958290,8.91460918,79.031,78.99,11.4011]
[1770832959090,20.31000918,79.031,78.982,11.4023]
[1770832959293,8.91460918,79.031,78.971,9.62786922]
[1770832959793,11.3929,79.048,78.997,11.4001]
[1770832960200,11.3929,79.048,78.994,9.62786922]
[1770832960493,11.3941,79.04,78.995,11.4004]
[1770832960693,9.16845893,79.054,78.995,11.4004]
[1770832960900,8.91460918,79.053,78.995,11.4004]
[1770832961700,11.393,79.047,78.995,11.4004]
[1770832962093,20.30760918,79.047,78.995,11.4004]
[1770832962294,8.91460918,79.046,78.987,11.4016]
[1770832962694,8.91460918,79.046,78.97,10.98872731]
[1770832962695,8.91460918,79.059,79.003,11.3993]
[1770832963297,11.3933,79.045,78.995,21.02816922]
[1770832963502,11.3933,79.045,78.996,9.62786922]
[1770832964591,11.3922,79.053,79.003,11.3992]
[1770832964792,8.91460918,79.077,79.001,9.62786922]
[1770832965395,11.3895,79.071,79.023,11.3964]
[1770832966697,8.91460918,79.077,79.029,11.3955]
[1770832967099,8.91460918,79.077,79.001,9.62786922]
[1770832967400,8.91460918,79.068,79.016,11.3973]
[1770832967598,8.91460918,79.085,79.017,9.62786922]
[1770832968203,8.91460918,79.076,79.029,11.3955]
[1770832968701,8.91460918,79.076,79.017,9.62786922]
[1770832968702,8.91460918,79.099,79.021,9.62786922]
[1770832969514,8.91460918,79.094,79.021,9.62786922]
[1770832969802,8.91460918,79.112,79.021,9.62786922]
[1770832970397,11.3849,79.104,79.052,11.3921]
[1770832970598,8.91460918,79.112,79.049,9.090394]
[1770832971507,8.75394317,79.087,79.038,11.3942]
[1770832972005,8.75394317,79.087,79.032,9.090394]
[1770832972194,8.75394317,79.087,79.045,11.3933]
[1770832973300,8.75394317,79.087,79.036,11.3944]
[1770832974008,8.75394317,79.087,79.042,11.3936]
[1770832975010,8.75394317,79.087,79.035,11.3947]
[1770832975808,11.3893,79.073,79.032,9.090394]
[1770832976001,8.75394317,79.087,79.032,9.090394]
[1770832976810,11.3883,79.08,79.032,9.090394]
[1770832977308,8.75394317,79.079,79.027,11.3958]
[1770832978097,8.75394317,79.078,79.027,11.3958]
[1770832978907,8.75394317,79.078,79.016,9.090394]
[1770832979495,11.3887,79.077,79.033,11.3949]
[1770832980301,11.3887,79.077,79.026,11.3959]
[1770832980804,11.3887,79.077,79.03,11.3953]
[1770832981002,11.3887,79.077,79.03,20.485694]
[1770832981203,8.75394317,79.11,79.031,9.090394]
[1770832981406,8.75394317,79.099,79.04,9.090394]
[1770832981909,11.3877,79.084,79.04,9.090394]
[1770832982106,8.75394317,79.099,79.04,9.090394]
[1770832982907,11.3876,79.085,79.042,11.3936]
[1770832983205,8.75394317,79.099,79.015,9.090394]
[1770832983407,11.3896,79.071,79.025,11.396]
[1770832983610,8.75394317,79.059,78.998,9.090394]
[1770832984210,9.16845893,79.074,79.006,9.090394]
[1770832984514,8.75394317,79.077,79.006,9.090394]
[1770832984709,9.16845893,79.092,79.029,9.090394]
[1770832984913,8.75394317,79.096,79.029,9.090394]
[1770832985506,8.75394317,79.096,79.045,9.090394]
[1770832986307,8.75394317,79.096,79.02,10.98872731]
[1770832986308,8.75394317,79.096,79.036,11.3945]
[1770832986912,8.75394317,79.094,79.036,20.484894]
[1770832987108,11.3874,79.086,79.036,20.484894]
[1770832987309,8.75394317,79.079,79.001,9.090394]
[1770832987509,22.7663,79.116,78.993,100.96]
[1770832987510,8.75394317,79.096,79.011,9.090394]
[1770832987810,8.75394317,79.139,79.072,11.3893]
[1770832988009,8.75394317,79.139,79.062,9.090394]
[1770832988010,9.15065247,79.138,79.062,9.090394]
[1770832988311,8.75394317,79.138,79.062,9.090394]
[1770832988504,8.75394317,79.119,79.062,9.090394]
[1770832988905,8.75394317,79.119,79.069,11.3897]
[1770832989101,8.75394317,79.119,79.062,9.090394]
[1770832990719,8.75394317,79.107,79.045,9.090394]
[1770832990904,8.75394317,79.099,79.026,9.090394]
[1770832991102,8.75394317,79.098,79.026,9.090394]
[1770832991306,11.3883,79.08,79.027,11.3958]
[1770832991511,11.3883,79.08,79.028,9.090394]
[1770832991711,10.98872731,79.1,79.047,11.3929]
[1770832991712,8.75394317,79.1,79.047,11.3929]
[1770832991915,8.75394317,79.099,79.047,11.3929]
[1770832992309,8.75394317,79.087,79.028,9.090394]
[1770832992904,8.75394317,79.087,79.039,11.3941]
[1770832993215,8.75394317,79.087,79.04,9.090394]
[1770832993518,8.75394317,79.087,79.01,10.98872731]
[1770832993519,8.75394317,79.087,79.014,9.090394]
[1770832993711,8.75394317,79.087,79.04,11.3939]
[1770832995116,19.74267048,79.08,79.029,9.090394]
[1770832995417,8.75394317,79.079,79.029,9.090394]
[1770832996206,8.75394317,79.079,79.013,118.5]
[1770832996416,8.75394317,79.059,78.997,9.090394]
[1770832997018,11.3942,79.039,78.992,11.4008]
[1770832997317,8.75394317,79.057,78.981,9.090394]
[1770832997619,8.75394317,79.078,78.991,9.090394]
[1770832997808,8.75394317,79.076,78.991,9.090394]
[1770832998012,8.75394317,79.074,78.991,9.090394]
[1770832998213,8.75394317,79.072,78.991,9.090394]
[1770832998425,8.75394317,79.059,78.991,9.090394]
[1770832998616,17.99856669,79.058,78.991,9.090394]
[1770832998810,9.24462352,79.057,78.991,9.090394]
[1770832999016,11.3923,79.052,79.004,11.3991]
[1770833002112,8.75394317,79.058,79.011,11.3981]
[1770833002310,9.3839089,79.075,79.012,8.76994499]
[1770833002514,18.65383828,79.074,79.012,8.76994499]
[1770833002715,9.26992938,79.073,79.012,8.76994499]
[1770833002914,9.26992938,79.072,79.012,8.76994499]
[1770833003118,9.26992938,79.071,79.012,8.76994499]
[1770833003324,9.26992938,79.07,79.012,8.76994499]
[1770833003514,9.3839089,79.074,79.025,20.16604499]
[1770833003714,9.27213949,79.073,79.025,20.16604499]
[1770833003916,9.27213949,79.072,79.025,20.16604499]
[1770833004115,9.27213949,79.071,79.025,20.16604499]
[1770833004316,9.27483662,79.07,79.032,11.3951]
[1770833004516,9.3839089,79.074,79.032,11.3951]
[1770833004816,9.3839089,79.096,79.025,8.76994499]
[1770833005014,9.3839089,79.088,79.025,8.76994499]
[1770833005212,11.3886,79.078,79.031,11.3952]
[1770833005525,9.3839089,79.071,79.0,8.76994499]
[1770833005825,9.27443903,79.07,79.0,8.76994499]
[1770833006022,9.27443903,79.069,79.0,8.76994499]
[1770833006227,9.27443903,79.068,79.0,8.76994499]
[1770833006429,11.3905,79.065,79.02,11.3968]
[1770833006725,9.27443903,79.064,79.02,11.3968]
[1770833006922,9.27443903,79.063,79.02,11.3968]